[Event "USA Championship Women 2022"]
[Site "Saint Louis"]
[Date "2022.10.05"]
[Round "1.1"]
[White "Zatonskih, Anna"]
[Black "Yu, Jennifer"]
[Result "0-1"]
[ECO "E20"]
[WhiteElo "2368"]
[BlackElo "2297"]
[Annotator "TA"]
[PlyCount "168"]
[EventDate "2022.09.05"]
[EventType "tourn"]
[EventCountry "USA"]
[SourceTitle "playchess.com"]
[Source "ChessBase"]
[SourceQuality "1"]
[TimeControl "40/5400+30:1800+30"]

{[%evp 10,168,-1,-8,4,0,0,0,4,0,0,0,15,0,29,4,11,8,19,19,19,17,15,18,19,17,15,9,16,18,36,19,33,25,70,79,73,67,52,69,75,69,85,42,54,0,0,0,0,0,0,0,0,-3,-3,-43,-43,-81,-88,-88,-83,-113,-112,-121,-95,-91,-70,-81,-71,-100,-97,-90,-66,-90,-104,-88,-92,-82,-83,-87,-97,-89,-83,-86,-33,-80,-78,-81,-79,-89,-35,-59,-15,-56,-17,-193,-194,-180,-187,-182,-190,-191,-185,-205,-198,-203,-200,-219,-210,-185,-136,-135,-120,-216,-92,-92,-115,-115,-123,-352,-234,-227,-6,-13,0,0,0,-72,-72,-72,-72,-72,-72,-72,-72,-72,-72,-72,-72,-79,-79,-86,-86,-86,-86,-12848,-12848,-12849,-12849,-27997,-27997,-27999,-27999,-27999,-27999,-27999,-27999,-27997,-27997,-27998,-27997]} 1. d4 {[%emt 0:00:02]} Nf6 {[%emt 0:00:28]} 2. c4 {[%emt 0:00:51]} e6 {[%emt 0:00:14]} 3. Nc3 {[%emt 0:00:35]} Bb4 {[%emt 0:00:34]} 4. Bd2 {[%emt 0:09:23]} O-O {[%emt 0:01:20]} 5. a3 {[%emt 0:01:42]} Bxc3 {[%emt 0:00:41]} 6. Bxc3 {[%emt 0:00:05]} d5 {[%emt 0:00:13] E20: Nimzo-Indian: 4 g3 and 4 f3.} 7. e3 {[%emt 0:02:07]} b6 {[%emt 0:02:43]} 8. Nf3 {[%emt 0:08:01]} Bb7 {[%emt 0:04:21] The position is equal.} 9. Be2 {[%emt 0:10:30]} Ne4 {[%emt 0:02:12]} 10. Rc1 {[%emt 0:04:24]} Nd7 {[%emt 0:02:12]} 11. O-O {[%emt 0:02:36]} Rc8 {[%emt 0:06:55]} 12. b4 {[%emt 0:15:02]} Nxc3 {[%emt 0:13:56]} 13. Rxc3 {[%emt 0:00:12]} c5 {[%emt 0:00:03] [#]} 14. cxd5 $146 {[%emt 0:08:51]} ({Predecessor:} 14. bxc5 bxc5 15. cxd5 Bxd5 16. dxc5 Rxc5 17. Rxc5 Nxc5 18. Qc2 Qa5 19. Qb2 Ne4 20. Rc1 {1-0 (32) Strifler,J (2014)-Sasaeac,A (2022) Gyula 2001}) 14... Bxd5 {[%emt 0:00:21]} 15. dxc5 {[%emt 0:02:57]} (15. bxc5 {keeps more tension.} bxc5 16. Qd2 Bxf3 17. Bxf3 Nb6 18. Rd1) 15... bxc5 {[%emt 0:00:31]} 16. Qc2 {[%emt 0:01:51][%cal Rb4c5]} cxb4 {[%emt 0:06:01]} 17. axb4 {[%emt 0:00:24]} Rxc3 {[%emt 0:14:34]} 18. Qxc3 {[%emt 0:00:09]} Qb8 {[%emt 0:00:08]} 19. Rc1 {[%emt 0:11:18]} Nf6 {[%emt 0:00:55]} 20. Nd4 {[%emt 0:07:58]} Ne4 {[%emt 0:03:43]} 21. Qa3 {[%emt 0:00:31]} h6 {[%emt 0:18:23]} 22. b5 {[%emt 0:04:29]} Rc8 {[%emt 0:06:40]} 23. Nc6 {[%emt 0:02:30]} Bxc6 {[%emt 0:00:02]} 24. bxc6 {[%emt 0:00:05]} Qb6 {[%emt 0:00:22]} 25. Bd3 {[%emt 0:02:28]} Nf6 {[%emt 0:04:43][%cal Be4f6,Bf6d5,Bd5b4][%mdl 32]} 26. Qa4 {[%emt 0:00:47]} Nd5 {[%emt 0:02:32]} 27. Qa6 {[%emt 0:02:28]} (27. Be4 $14) 27... Qxa6 $11 {[%emt 0:02:40]} 28. Bxa6 {[%emt 0:00:01][%mdl 4096] Endgame KRB-KRN} Rc7 {[%emt 0:00:04]} 29. Kf1 {[%emt 0:00:31]} Kf8 {[%emt 0:00:36]} 30. e4 {[%emt 0:01:16]} Nb4 {[%emt 0:01:26][%csl LRa6,LRc6]} 31. Bb5 {[%emt 0:00:18]} Ke7 {[%emt 0:04:08]} 32. Ke2 {[%emt 0:00:29]} Kd6 {[%emt 0:01:27][%cal Rb4c6]} 33. Rd1+ {[%emt 0:00:59]} Kc5 {[%emt 0:00:28]} 34. Ba4 {[%emt 0:00:35]} Nxc6 {[%emt 0:00:25]} 35. Bxc6 {[%emt 0:00:41]} Kxc6 $17 {[%emt 0:00:05] KR-KR} ({Don't play} 35... Rxc6 $6 36. Rd7 $11) 36. Rc1+ {[%emt 0:00:23]} Kd7 {[%emt 0:01:21]} 37. Ra1 {[%emt 0:00:14]} Kd6 {[%emt 0:00:06]} 38. Ke3 {[%emt 0:00:14]} Kc5 {[%emt 0:00:56]} 39. Rc1+ {[%emt 0:00:28]} Kb6 $1 {[%emt 0:00:06]} 40. Rb1+ {[%emt 0:00:02]} Ka5 {[%emt 0:00:40]} 41. Ra1+ {[%emt 0:31:25]} Kb4 {[%emt 0:30:59]} 42. Rb1+ {[%emt 0:00:10]} Ka3 {[%emt 0:00:00]} 43. Ra1+ {[%emt 0:00:00]} Kb2 {[%emt 0:00:00]} 44. Ra5 {[%emt 0:00:00]} Kb3 {[%emt 0:00:00]} 45. Ra1 {[%emt 0:00:00]} Rd7 {[%emt 0:00:00]} 46. h4 {[%emt 0:00:00]} e5 {[%emt 0:00:00]} ({Black should try} 46... Kb4 $17 {...a5 is the strong threat.} 47. Rb1+ Kc5 48. Rc1+ Kb5 49. Rb1+ Kc6) 47. h5 {[%emt 0:00:00]} (47. g4 $15 {is superior.}) 47... Kb4 {[%emt 0:00:00]} 48. Rb1+ {[%emt 0:00:00]} Kc5 {[%emt 0:00:00]} 49. Rc1+ {[%emt 0:00:00]} Kd6 {[%emt 0:00:36]} (49... Kb5 $17 {aiming for ...a5.} 50. Rb1+ Kc6) 50. Ra1 $15 {[%emt 0:00:00]} Rb7 {[%emt 0:00:36]} 51. g3 {[%emt 0:00:00]} Kc6 {[%emt 0:03:01] Threatens to win with ...Rb3+.} (51... Kc5 $5 {[%cal Rb7b3]} 52. f4 Rb3+ 53. Kd2 f6 54. fxe5 fxe5 55. Ra5+ Kb6 56. Rxe5 Rxg3 57. Re6+ Kb5 $17) 52. Rc1+ $2 {[%emt 0:00:00]} (52. f4 $11) 52... Kb6 $1 $19 {[%emt 0:00:39]} 53. Rb1+ {[%emt 0:00:00]} Kc7 {[%emt 0:00:05]} 54. Rc1+ {[%emt 0:00:00]} Kb8 $1 {[%emt 0:00:55]} 55. Ra1 {[%emt 0:01:27]} Rb3+ {[%emt 0:00:05]} 56. Kd2 {[%emt 0:03:58]} Kb7 {[%emt 0:00:43]} 57. Ra5 {[%emt 0:00:43]} f6 {[%emt 0:00:06]} 58. Rd5 {[%emt 0:01:39]} Kc6 {[%emt 0:00:08] Prevents Rd7.} 59. Rd8 {[%emt 0:00:28]} Rb7 {[%emt 0:01:34]} (59... a5 $19 60. Rg8 Rb2+ 61. Kc3 Rxf2 62. Rxg7 Rf3+ 63. Kb2 Kc5) 60. Kc3 $17 {[%emt 0:00:44]} a5 {[%emt 0:00:55][%cal Ba7a5,Ba5a4][%mdl 32]} 61. f4 {[%emt 0:01:21]} (61. Rd5 $17) 61... exf4 {[%emt 0:00:42]} (61... Re7 $1 $19 {is more deadly. Strongly threatening ...exf4.} 62. Rg8 exf4 63. gxf4 a4 64. Rc8+ Rc7) 62. gxf4 {[%emt 0:00:01]} Re7 {[%emt 0:00:29]} 63. Rd4 {[%emt 0:00:54]} Ra7 {[%emt 0:00:29] And now ...a4 would win.} 64. Kb3 $2 {[%emt 0:00:18]} (64. Rd1 $17) 64... a4+ {[%emt 0:00:36]} 65. Ka3 {[%emt 0:00:01]} Kc5 $2 {[%emt 0:00:05] Prevents Rc4+.} (65... Ra5 $19 66. f5 Ra7) 66. Rb4 $1 $11 {[%emt 0:01:20]} Rd7 {[%emt 0:00:39] White must now prevent ...Rd3+.} 67. Rxa4 {[%emt 0:00:19]} Rb7 {[%emt 0:00:36]} 68. e5 {[%emt 0:00:30]} (68. Ka2 $1 $11 {remains equal.}) 68... fxe5 $17 {[%emt 0:00:12]} 69. fxe5 {[%emt 0:00:37]} Kd5 {[%emt 0:00:04]} 70. Rg4 {[%emt 0:00:08]} Kxe5 {[%emt 0:00:24]} 71. Rg6 {[%emt 0:00:01]} Kd4 {[%emt 0:00:50]} 72. Ka4 {[%emt 0:00:14]} Ke3 {[%emt 0:00:37]} 73. Ka5 {[%emt 0:00:33]} Kf3 {[%emt 0:00:39]} 74. Ka4 {[%emt 0:00:45]} Re7 {[%emt 0:00:45]} 75. Kb3 {[%emt 0:00:39]} Re3+ {[%emt 0:00:41]} 76. Kc4 {[%emt 0:00:35] [#]} Re4+ $1 {[%emt 0:00:27]} 77. Kd5 $2 {[%emt 0:00:01][%mdl 8192]} (77. Kd3 $17) 77... Rg4 $19 {[%emt 0:00:21]} 78. Ke6 {[%emt 0:00:19] [#]} Rg5 $1 {[%emt 0:00:23]} 79. Rxg5 {[%emt 0:01:49]} hxg5 {[%emt 0:00:04] KPP-KP. Black mates.} 80. Kf5 {[%emt 0:00:23]} g4 {[%emt 0:00:07]} 81. Kg6 {[%emt 0:00:02]} g3 {[%emt 0:00:04]} 82. Kxg7 {[%emt 0:00:04]} g2 {[%emt 0:00:03]} 83. h6 {[%emt 0:00:05]} g1=Q+ {[%emt 0:00:03]} 84. Kh8 {[%emt 0:00:42]} Qd4+ {[%emt 0:00:05] Weighted Error Value: White=0.15 (very precise) /Black=0.08 (flawless)} 0-1

[Event "USA Championship Women 2022"]
[Site "Saint Louis"]
[Date "2022.10.05"]
[Round "1.2"]
[White "Abrahamyan, Tatev"]
[Black "Krush, Irina"]
[Result "1/2-1/2"]
[ECO "B42"]
[WhiteElo "2308"]
[BlackElo "2432"]
[Annotator "TA"]
[PlyCount "86"]
[EventDate "2022.09.05"]
[EventType "tourn"]
[EventCountry "USA"]
[SourceTitle "playchess.com"]
[Source "ChessBase"]
[SourceQuality "1"]
[TimeControl "40/5400+30:1800+30"]

{[%evp 17,86,25,24,-12,14,0,5,-32,-17,-60,-59,-134,-116,-112,4,0,3,0,0,0,35,22,45,0,0,0,0,-58,-68,-58,-65,-68,0,0,0,0,0,8,0,-97,-107,-105,-110,-108,-70,-77,0,0,0,0,0,0,0,0,0,-114,95,88,89,90,95,127,51,0,0,0,35,0,0,0,32]} 1. e4 {[%emt 0:00:03]} c5 {[%emt 0:00:15]} 2. Nf3 {[%emt 0:00:13]} e6 {[%emt 0:00:16]} 3. d4 {[%emt 0:00:27]} cxd4 {[%emt 0:00:10]} 4. Nxd4 {[%emt 0:00:04]} a6 {[%emt 0:00:10]} 5. Bd3 {[%emt 0:00:47]} Bc5 {[%emt 0:00:14]} 6. Nb3 {[%emt 0:00:29]} Ba7 {[%emt 0:00:10]} 7. Nc3 {[%emt 0:03:10]} Nc6 {[%emt 0:02:02]} 8. Qe2 {[%emt 0:00:56]} d6 {[%emt 0:01:14]} 9. Be3 {[%emt 0:01:45]} b5 {[%emt 0:01:28]} 10. O-O-O {[%emt 0:04:34] B42: Sicilian: Kan Variation: 5 Bd3.} Nge7 {[%emt 0:04:12]} 11. f4 {[%emt 0:05:58]} b4 {[%emt 0:03:59]} 12. Nb1 {[%emt 0:19:18]} a5 {[%emt 0:03:00]} 13. Bb5 {[%emt 0:07:32]} O-O {[%emt 0:01:02][%cal Oa5a4] [#]} 14. Nd4 $146 {[%emt 0:14:15]} (14. a4 $15) ({Predecessor:} 14. a4 Qc7 15. g4 Bxe3+ 16. Qxe3 Na7 17. Nd4 Qc5 18. Rhe1 Bb7 19. Bd3 e5 20. fxe5 dxe5 {1-0 (60) Vega Gutierrez,S (2385)-Cramling,P (2454) Mulhouse 2022}) 14... Nxd4 {[%emt 0:16:06]} 15. Bxd4 {[%emt 0:00:09]} a4 {[%emt 0:05:01]} ({Better is} 15... Bxd4 $17 16. Rxd4 Qb6) 16. a3 $11 {[%emt 0:06:44]} bxa3 {[%emt 0:08:28]} 17. Nxa3 {[%emt 0:00:18]} Bxd4 {[%emt 0:03:56]} 18. Rxd4 {[%emt 0:01:54]} Qb6 {[%emt 0:01:39]} 19. Rhd1 {[%emt 0:08:18]} ({But not} 19. Rxa4 Rxa4 20. Bxa4 d5 $11) 19... d5 {[%emt 0:00:19]} 20. Rxa4 {[%emt 0:06:56]} Rxa4 {[%emt 0:10:28]} 21. Bxa4 {[%emt 0:00:03]} Ba6 {[%emt 0:00:10]} 22. Qf3 {[%emt 0:01:41]} ({White should try} 22. Qd2 $11) 22... Qb4 $36 {[%emt 0:07:52][%csl LRa4,LRe4][%mdl 2048] Black fights for an advantage.} 23. Bb3 {[%emt 0:00:51][%cal Re4d5]} dxe4 {[%emt 0:04:39]} 24. Qf2 {[%emt 0:02:06]} Rc8 {[%emt 0:07:47]} (24... Qb7 $15) 25. Qd4 $11 {[%emt 0:07:50] White threatens Qd8+ and mate.} Nc6 {[%emt 0:07:42][%cal Be7c6,Bc6b4,Bb4d3,Bd3f4,Bf4g2][%mdl 32] Against Qd8+} (25... Qxb3 $2 {is a self mate.} 26. Qd8+ $3 {[%mdl 512]} Rxd8 27. Rxd8# (27. cxb3 $2 {perishes.} Bd3 $19)) 26. Qxb4 {[%emt 0:03:16]} Nxb4 {[%emt 0:00:00]} 27. Rd4 {[%emt 0:00:42]} Nd3+ {[%emt 0:00:00]} 28. Kb1 {[%emt 0:01:06]} (28. Kd2 $11 Nxf4 29. g3) 28... Nxf4 $17 {[%emt 0:03:39] Hoping for ...Bb7.} 29. Rxe4 {[%emt 0:00:08]} Nxg2 {[%emt 0:00:51]} 30. Nc4 {[%emt 0:02:01]} Rd8 {[%emt 0:06:37] Prevents Nd6.} 31. Ne5 {[%emt 0:01:01]} Bb7 {[%emt 0:00:42]} (31... Rd1+ $17 32. Ka2 Re1 33. Rxe1 Nxe1) 32. Rb4 $11 {[%emt 0:00:35]} Ba8 {[%emt 0:00:13]} 33. Ra4 {[%emt 0:00:55]} Bd5 {[%emt 0:01:52]} 34. Bxd5 {[%emt 0:00:27]} exd5 {[%emt 0:00:02][%mdl 4096] Endgame KRN-KRN} 35. Nc6 {[%emt 0:00:35]} Re8 {[%emt 0:00:23] aiming for ...f5.} 36. b4 {[%emt 0:00:39] [#]} (36. Ne7+ $11 Kf8 37. Nxd5) 36... Ne3 $2 {[%emt 0:00:28]} (36... f5 $1 $17 {and life is bright. White must now prevent ...f4.} 37. b5 f4) 37. b5 $16 {[%emt 0:00:21] And now b6 would win.} Nc4 {[%emt 0:00:14] [#]} 38. Ne7+ {[%emt 0:00:26]} Kf8 {[%emt 0:00:46]} 39. Nxd5 {[%emt 0:00:06]} Rd8 {[%emt 0:01:23]} 40. Nc3 {[%emt 0:01:10]} Rc8 {[%emt 0:00:15]} 41. Nd5 {[%emt 0:10:15] Strongly threatening b6.} Rd8 $1 {[%emt 0:05:00]} 42. Nc3 {[%emt 0:12:35]} Rc8 {[%emt 0:00:08]} 43. Nd5 {[%emt 0:00:11] Threatens to win with b6.} Rd8 $1 {[%emt 0:01:21] Weighted Error Value: White=0.24 (precise) /Black=0.29 (precise)} 1/2-1/2

[Event "USA Championship Women 2022"]
[Site "Saint Louis"]
[Date "2022.10.05"]
[Round "1.3"]
[White "Foisor, Sabina-Francesca"]
[Black "Paikidze, Nazi"]
[Result "1/2-1/2"]
[ECO "E14"]
[WhiteElo "2203"]
[BlackElo "2354"]
[Annotator "TA"]
[PlyCount "81"]
[EventDate "2022.09.05"]
[EventType "tourn"]
[EventCountry "USA"]
[SourceTitle "playchess.com"]
[Source "ChessBase"]
[SourceQuality "1"]
[TimeControl "40/5400+30:1800+30"]

{[%evp 19,81,5,13,0,7,0,21,21,27,19,19,0,11,15,22,26,29,0,11,-20,-14,-38,-45,-41,-37,-39,14,0,0,-104,-105,-109,43,20,20,20,25,-74,-71,-69,-70,-64,-62,-58,0,0,0,0,0,-3,-10,-10,-10,-10,0,0,0,-2484,0,0,0,-1829,0,0]} 1. d4 {[%emt 0:00:03]} Nf6 {[%emt 0:00:06]} 2. Nf3 {[%emt 0:00:11]} e6 {[%emt 0:00:08]} 3. e3 {[%emt 0:00:16]} b6 {[%emt 0:01:58]} 4. Bd3 {[%emt 0:00:24]} Bb7 {[%emt 0:00:09]} 5. b3 {[%emt 0:01:21]} Be7 {[%emt 0:02:42]} 6. Bb2 {[%emt 0:00:24]} c5 {[%emt 0:00:53]} 7. O-O {[%emt 0:01:31]} O-O {[%emt 0:01:35]} 8. Nbd2 {[%emt 0:00:06]} d6 {[%emt 0:02:28]} 9. Qe2 {[%emt 0:05:31]} Nbd7 {[%emt 0:04:40]} 10. c4 {[%emt 0:07:42]} Re8 {[%emt 0:01:13]} 11. Rac1 {[%emt 0:05:14] E14: Queen's Indian: Classical Variation (4 e3).} Bf8 {[%emt 0:03:19]} 12. Bb1 {[%emt 0:02:36]} e5 {[%emt 0:07:00] [#] ...exd4 is the strong threat.} 13. d5 $146 {[%emt 0:06:53]} ({Predecessor:} 13. dxe5 dxe5 14. Rfd1 Qc7 15. Nf1 Rad8 16. e4 Qc6 17. Ng3 Qe6 18. Bc3 g6 19. Qb2 Bh6 {½-½ (34) Horak,J (2029)-Pecka,J (1610) Ricany 2020}) 13... b5 {[%emt 0:04:09]} 14. h4 {[%emt 0:10:59]} g6 {[%emt 0:04:11]} 15. g3 {[%emt 0:07:33]} Bg7 {[%emt 0:02:47]} 16. e4 {[%emt 0:02:51]} a6 {[%emt 0:01:15]} 17. Bd3 {[%emt 0:12:15]} b4 {[%emt 0:01:18]} 18. Ng5 {[%emt 0:06:18]} Nh5 {[%emt 0:04:51]} 19. Rce1 {[%emt 0:03:45]} Bc8 {[%emt 0:04:18]} 20. Qf3 {[%emt 0:08:26]} Rf8 {[%emt 0:08:46]} 21. Qg2 {[%emt 0:01:38]} h6 {[%emt 0:01:26]} 22. Nh3 {[%emt 0:02:33]} f5 {[%emt 0:01:57]} (22... Ndf6 $15) 23. f4 {[%emt 0:02:50]} Ra7 {[%emt 0:07:21]} 24. exf5 {[%emt 0:01:38]} (24. Bc2 $11) 24... gxf5 $17 {[%emt 0:00:31]} 25. Be2 {[%emt 0:01:36] [#] Black must now prevent fxe5.} Qe8 {[%emt 0:07:11]} ({Black should play} 25... e4 $17 26. Bxg7 (26. Nxe4 $2 fxe4 27. Bxg7 Nxg7 $19) 26... Nxg7) 26. g4 {[%emt 0:01:35]} Nxf4 {[%emt 0:02:07]} (26... fxg4 $2 27. Bxg4 Ndf6 28. Bxc8 Qxc8 29. fxe5 dxe5 30. Bxe5 $18) 27. Nxf4 {[%emt 0:00:44]} exf4 {[%emt 0:00:02]} 28. Bxg7 {[%emt 0:02:27]} (28. gxf5 $11 Ne5 29. Ne4 (29. Rxf4 Bxf5 30. Ne4 Bxe4 $11)) 28... Kxg7 {[%emt 0:02:48]} (28... Qe3+ $2 29. Kh1 Kxg7 30. Bf3 $18) 29. gxf5+ {[%emt 0:01:16]} Kh8 {[%emt 0:00:12]} 30. Qe4 {[%emt 0:02:07]} Ne5 {[%emt 0:05:04]} 31. Rxf4 {[%emt 0:00:03]} Bxf5 {[%emt 0:05:58]} 32. Rxf5 $11 {[%emt 0:00:20]} Qg6+ {[%emt 0:00:58]} 33. Bg4 $1 {[%emt 0:00:08]} Rg8 {[%emt 0:01:06]} 34. Rf4 {[%emt 0:02:13]} Qh5 {[%emt 0:03:56]} 35. Nf3 {[%emt 0:01:23][%cal Rf3e5]} Nxg4 {[%emt 0:02:34]} 36. Kf1 {[%emt 0:00:09]} Rag7 {[%emt 0:01:20]} 37. Re2 {[%emt 0:01:04]} Ne5 {[%emt 0:00:58] [#] Threatens to win with ...Nxf3.} 38. Re3 {[%emt 0:00:46][%mdl 8192]} ({Don't blunder} 38. Nxe5 $2 Rg1+ 39. Kf2 R8g2+ 40. Qxg2 Rxg2+ 41. Kxg2 Qxe2+ 42. Rf2 Qxe5 $19) (38. Rf5 $11 Qg6 39. Ke1) 38... Ng4 $2 {[%emt 0:03:48]} (38... Nxf3 $19 39. Qxf3 Qg6) 39. Re2 {[%emt 0:00:10]} Ne5 $2 {[%emt 0:00:41][%mdl 8192]} (39... Rf7 $11) 40. Re3 $19 {[%emt 0:00:49]} ({Wrong is} 40. Nxe5 $2 Rg1+ 41. Kf2 R8g2+ 42. Qxg2 Rxg2+ 43. Kxg2 Qxe2+ 44. Rf2 Qxe5 $19) 40... Ng4 $2 {[%emt 0:01:58]} ({Better is} 40... Nxf3 $19 41. Qxf3 Qg6) 41. Re2 {[%emt 0:04:58] Weighted Error Value: White=0.35/Black=0.42} 1/2-1/2

[Event "USA Championship Women 2022"]
[Site "Saint Louis"]
[Date "2022.10.05"]
[Round "1.4"]
[White "Lee, Megan"]
[Black "Wu, Rochelle"]
[Result "1-0"]
[ECO "B40"]
[WhiteElo "2226"]
[BlackElo "2317"]
[Annotator "TA"]
[PlyCount "89"]
[EventDate "2022.09.05"]
[EventType "tourn"]
[EventCountry "USA"]
[SourceTitle "playchess.com"]
[Source "ChessBase"]
[SourceQuality "1"]
[TimeControl "40/5400+30:1800+30"]

{[%evp 13,89,-44,-26,-52,-39,-35,-56,-47,-47,-37,-36,-45,-45,-51,-13,-31,-16,-39,-16,-32,-6,-32,0,-15,-17,-24,0,-51,-42,-61,0,0,11,18,52,-25,49,46,81,81,86,86,82,81,82,60,81,47,65,0,0,0,6,-71,181,156,172,95,96,96,103,103,104,105,106,106,108,106,110,110,127,119,120,113,737,728,710,639]} 1. e4 {[%emt 0:00:04]} c5 {[%emt 0:00:13]} 2. Nf3 {[%emt 0:00:08]} e6 {[%emt 0:00:38]} 3. d4 {[%emt 0:00:06]} cxd4 {[%emt 0:00:22]} 4. Nxd4 {[%emt 0:00:02]} Nf6 {[%emt 0:00:25]} 5. Bd3 {[%emt 0:05:50]} Nc6 {[%emt 0:01:30]} 6. c3 {[%emt 0:05:09]} d5 {[%emt 0:06:56]} 7. Nxc6 {[%emt 0:10:46] The main line 7.Nxc6 scores better than 7.exd5.} bxc6 {[%emt 0:00:05]} 8. Qe2 {[%emt 0:04:30] B40: Sicilian: 2...e6, Unusual lines.} Nxe4 {[%emt 0:04:03]} 9. Bxe4 {[%emt 0:02:08]} dxe4 {[%emt 0:00:06]} 10. Qxe4 {[%emt 0:03:05] Black is slightly better.} Qd5 {[%emt 0:00:21]} 11. Nd2 {[%emt 0:03:09]} Ba6 {[%emt 0:01:41] [#]} 12. Qxd5 $146 {[%emt 0:00:43]} ({Predecessor:} 12. b3 Be7 13. c4 Qxe4+ 14. Nxe4 f5 15. Ng5 O-O-O 16. Nf7 Bf6 17. Rb1 c5 18. Bb2 {1-0 (41) Foukal,J-Olsar,Z (2065) Valasska Bystrice 2009}) 12... cxd5 {[%emt 0:00:16]} 13. Nb3 {[%emt 0:00:27]} Rb8 {[%emt 0:09:14]} 14. Bf4 {[%emt 0:08:09]} Rc8 {[%emt 0:03:00]} 15. O-O-O {[%emt 0:06:45]} Be7 {[%emt 0:04:12]} 16. Rhe1 {[%emt 0:02:10]} O-O {[%emt 0:04:19]} 17. Kc2 {[%emt 0:19:28]} Rfd8 {[%emt 0:08:02]} 18. Be3 {[%emt 0:06:30]} Rd7 {[%emt 0:03:23]} 19. Bd4 {[%emt 0:01:16]} Bc4 {[%emt 0:12:56]} 20. Nd2 {[%emt 0:02:12]} ({White should try} 20. a4 $11) 20... Bb5 $15 {[%emt 0:00:09]} ({Don't play} 20... Bxa2 21. Ra1 Bc4 22. Nxc4 Rxc4 23. Rxa7 Rxa7 24. Bxa7 $11) 21. f4 {[%emt 0:04:02]} Rc6 {[%emt 0:05:47]} (21... Rb7 $15) 22. Ra1 $11 {[%emt 0:03:18]} f6 {[%emt 0:07:56]} 23. a4 {[%emt 0:02:18]} Ba6 {[%emt 0:00:17]} 24. Rab1 {[%emt 0:03:20]} (24. Nf3 $14) 24... Rb7 {[%emt 0:04:23]} ({Black should play} 24... Bb4 $1 $11) 25. Nb3 $1 $14 {[%emt 0:03:21] Strongly threatening Na5.} Rbc7 {[%emt 0:11:59]} 26. Na5 {[%emt 0:00:54] Inhibits Rc4.} Rd6 {[%emt 0:00:06] [#]} 27. b4 $1 {[%emt 0:00:26]} Bc8 {[%emt 0:03:26]} 28. b5 {[%emt 0:00:33] Against Ra6} Bd7 {[%emt 0:03:27]} 29. Kb2 {[%emt 0:01:18] White has more active pieces.} Kf7 {[%emt 0:01:18]} 30. Nb3 {[%emt 0:00:01]} Be8 {[%emt 0:02:59]} 31. Re2 {[%emt 0:02:04]} (31. Kc2 $14) 31... Rc4 $11 {[%emt 0:01:04]} 32. Ra1 {[%emt 0:00:01]} a6 {[%emt 0:00:51]} 33. Nd2 {[%emt 0:00:50] [#]} (33. Bc5 $11 {remains equal.}) 33... Rxd4 $4 {[%emt 0:00:48][%mdl 8192]} 34. cxd4 $18 {[%emt 0:00:06]} axb5 {[%emt 0:00:03]} 35. axb5 {[%emt 0:01:19]} (35. a5 $18) 35... Bxb5 $16 {[%emt 0:00:28]} 36. Re3 {[%emt 0:00:06]} Rd7 {[%emt 0:00:47]} 37. Ra5 {[%emt 0:01:33]} Bc6 {[%emt 0:00:41]} 38. Ra6 $36 {[%emt 0:00:21][%mdl 2048] White is really pushing.} Rb7+ {[%emt 0:00:11]} 39. Rb3 {[%emt 0:00:28]} Rxb3+ {[%emt 0:00:40]} 40. Nxb3 {[%emt 0:00:31] KRN-KB} Bb5 {[%emt 0:00:06]} 41. Ra7 {[%emt 0:30:35]} Bf1 {[%emt 0:30:11]} 42. g3 {[%emt 0:00:00]} Bh3 {[%emt 0:00:00]} 43. Na5 {[%emt 0:00:00] Hoping for Nc6.} Kf8 $2 {[%emt 0:00:00][%mdl 8192]} (43... Ke8 $16) 44. Nc6 $18 {[%emt 0:00:00]} Bd6 {[%emt 0:00:00]} 45. Rd7 {[%emt 0:00:00] Weighted Error Value: White=0.19 (very precise) /Black=0.28 (precise)} 1-0